bitfinex/quotes_ETHUSD_20241215
["timestamp","ask_amount","ask_price","bid_price","bid_amount"]
[1734260113919,1.08414457,3866.2,3865.7,0.10903573]
[1734260114123,1.30934457,3866.3,3865.4,1.87759046]
[1734260114324,1.30934457,3866.3,3865.5,2.35149462]
[1734260114526,1.30934457,3866.3,3865.6,0.89695526]
[1734260114730,1.81961121,3866.3,3865.7,0.10903573]
[1734260114959,1.81961121,3866.3,3865.4,0.796]
[1734260115166,1.81961121,3866.3,3865.8,0.10900037]
[1734260115319,3.04381455,3866.3,3865.4,0.796]
[1734260115667,1.81961121,3866.3,3865.5,2.35111562]
[1734260115872,1.81961121,3866.3,3865.5,0.10910647]
[1734260116077,1.81961121,3866.3,3865.6,0.89680392]
[1734260116210,1.81961121,3866.3,3865.5,0.10910647]
[1734260116567,1.81961121,3866.3,3865.6,0.1090711]
[1734260116733,2.56834564,3866.3,3865.6,0.1090711]
[1734260116935,1.08414457,3866.2,3865.4,0.796]
[1734260117139,1.08414457,3866.2,3865.7,0.1087409]
[1734260117344,2.5866,3866.1,3865.4,0.796]
[1734260117556,2.5866,3866.1,3865.8,0.10870045]
[1734260117757,2.5866,3866.1,3865.4,0.796]
[1734260117955,2.5866,3866.1,3865.5,0.89670159]
[1734260118132,2.5866,3866.1,3865.5,0.10880655]
[1734260121603,2.58666,3866.0,3865.5,0.10880655]
[1734260121763,1.04151623,3865.8,3865.5,0.10880655]
[1734260121940,1.26671623,3865.8,3865.5,0.10880655]
[1734260122139,1.26671623,3865.8,3865.1,0.7739]
[1734260122140,2.58692,3865.6,3865.1,0.7739]
[1734260122446,2.58699,3865.5,3865.2,0.10893807]
[1734260123173,2.58699,3865.5,3865.3,0.1086282]
[1734260123543,2.58699,3865.5,3864.9,1.08159046]
[1734260123740,2.58699,3865.5,3865.4,0.10859283]
[1734260123943,2.58699,3865.5,3864.8,1.85549046]
[1734260124145,2.58699,3865.5,3864.9,2.3505464]
[1734260124344,2.58699,3865.5,3865.0,0.89671068]
[1734260124578,2.58699,3865.5,3864.9,0.1087697]
[1734260124779,2.58699,3865.5,3865.1,0.10869895]
[1734260124982,2.58699,3865.5,3865.0,0.10873432]
[1734260125168,2.58699,3865.5,3864.8,1.85549046]
[1734260125169,2.58699,3865.5,3865.2,0.10866357]
[1734260125391,2.58699,3865.5,3865.1,0.10869895]
[1734260125549,2.58699,3865.5,3865.0,1.08159046]
[1734260125550,2.58699,3865.5,3865.3,0.1086282]
[1734260125873,2.58699,3865.5,3865.2,0.10866357]
[1734260126049,2.58699,3865.5,3865.4,0.10859283]
[1734260126253,2.58699,3865.5,3865.3,0.1086282]
[1734260126599,2.58699,3865.5,3865.4,0.10859283]
[1734260126968,2.58699,3865.5,3865.0,1.08159046]
[1734260127167,3.13686,3865.7,3865.4,0.10859283]
[1734260127369,3.13686,3865.7,3865.0,1.08159046]
[1734260127585,3.13686,3865.7,3865.5,0.10855746]
[1734260127791,3.13686,3865.7,3865.0,1.08159046]
[1734260128108,3.13686,3865.7,3865.6,0.10852209]
[1734260128346,3.13686,3865.7,3865.0,1.08159046]
[1734260128466,3.13686,3865.7,3865.1,2.24190683]
[1734260128667,3.65348368,3865.7,3865.2,1.0054263]
[1734260128976,3.65348368,3865.7,3865.2,0.10866357]
[1734260129303,3.65348368,3865.7,3864.9,1.08159046]
[1734260129515,3.65348368,3865.7,3865.0,2.24202011]
[1734260129704,3.65348368,3865.7,3865.1,2.24202011]
[1734260129854,3.65348368,3865.7,3865.2,0.10866357]
[1734260130056,3.65348368,3865.7,3864.9,1.08159046]
[1734260130305,3.65348368,3865.7,3865.0,2.24201696]
[1734260130505,3.65348368,3865.7,3865.1,2.24204493]
[1734260130708,2.58694,3865.6,3865.0,0.10873432]
[1734260131025,2.58707,3865.4,3865.1,0.10869895]
[1734260131455,2.58707,3865.4,3864.8,1.85549046]
[1734260131819,2.58707,3865.4,3864.9,2.24210668]
[1734260131961,2.58707,3865.4,3865.0,0.89684267]
[1734260132155,2.58707,3865.4,3864.9,0.1089527]
[1734260132472,2.58707,3865.4,3865.0,1.00574594]
[1734260132660,2.58707,3865.4,3865.0,0.10891732]
[1734260132860,2.58707,3865.4,3865.1,0.89683996]
[1734260133061,2.58707,3865.4,3864.9,1.08159046]
[1734260133298,2.58707,3865.4,3865.2,0.10884657]
[1734260133502,2.58707,3865.4,3865.3,0.1088112]
[1734260133684,2.58707,3865.4,3864.9,1.08159046]
[1734260134005,2.58707,3865.4,3865.0,2.35104104]
[1734260134162,2.58707,3865.4,3865.1,2.24212372]
[1734260134366,2.58707,3865.4,3865.0,0.10891732]
[1734260134568,1.06662368,3865.7,3865.2,0.10884657]
[1734260134760,2.58692,3865.6,3865.1,0.10888194]
[1734260135059,2.58692,3865.6,3865.2,0.10884657]
[1734260135261,2.58692,3865.6,3864.9,1.08159046]
[1734260135455,2.58692,3865.6,3865.0,2.35108658]
[1734260135660,2.58692,3865.6,3865.1,2.24216926]
[1734260135919,2.58692,3865.6,3865.0,0.10891732]
[1734260136057,2.58692,3865.6,3865.1,2.35105292]
[1734260136259,2.58692,3865.6,3865.1,0.10888194]
[1734260136659,2.58692,3865.6,3864.9,1.08159046]
[1734260136867,2.58692,3865.6,3865.0,2.24220886]
[1734260137070,2.58692,3865.6,3865.1,2.24220886]
[1734260137273,0.51662368,3865.7,3865.2,1.71128478]
[1734260137481,0.51662368,3865.7,3865.3,2.24221445]
[1734260137681,0.51662368,3865.7,3865.4,0.89688478]
[1734260137884,0.51662368,3865.7,3865.4,0.10900966]
[1734260138082,0.51662368,3865.7,3865.2,0.8144]
[1734260138281,0.51662368,3865.7,3865.3,2.24212808]
[1734260138474,0.51662368,3865.7,3865.4,0.89685123]
[1734260138676,0.51662368,3865.7,3865.3,0.10904503]
[1734260138957,0.51662368,3865.7,3865.4,1.00586359]
[1734260139160,0.51662368,3865.7,3865.4,0.10900966]
[1734260139600,0.51662368,3865.7,3865.2,0.8144]
[1734260139763,0.51662368,3865.7,3865.5,0.10897429]
[1734260139963,0.51662368,3865.7,3865.2,1.89599046]
[1734260140191,0.51662368,3865.7,3865.6,0.1089526]
[1734260140498,0.51662368,3865.7,3865.2,0.8144]
[1734260140699,0.51662368,3865.7,3865.3,2.24216853]
[1734260140864,0.51662368,3865.7,3865.4,0.89686585]
[1734260141218,0.51662368,3865.7,3865.4,0.10898231]
[1734260141658,0.51662368,3865.7,3865.2,1.89599046]
[1734260141862,0.51662368,3865.7,3865.3,2.24219058]
[1734260142083,0.51662368,3865.7,3865.4,0.89687623]
[1734260142264,0.51662368,3865.7,3865.4,0.10888572]
[1734260142461,0.51662368,3865.7,3865.2,1.89599046]
[1734260142700,1.04151623,3865.9,3865.3,2.24223112]
[1734260142862,1.04151623,3865.9,3865.4,2.24221288]
[1734260143068,1.04151623,3865.9,3865.3,0.10892109]
[1734260143302,1.04151623,3865.9,3865.4,2.24219832]
[1734260143501,1.04151623,3865.9,3865.3,0.10892109]
[1734260143664,1.04151623,3865.9,3865.5,0.10886403]
[1734260144016,1.04151623,3865.9,3865.6,0.10882866]
[1734260144176,1.56736366,3865.9,3865.6,0.10882866]
[1734260144499,2.58692,3865.6,3865.2,1.89599046]
[1734260144699,2.58692,3865.6,3865.2,0.8144]
[1734260144889,1.56736366,3865.9,3865.2,0.8144]
[1734260145091,2.58701,3865.5,3865.2,0.8144]
[1734260149237,1.04151623,3865.6,3865.2,0.8144]
[1734260149238,2.58711,3865.4,3865.2,0.8144]
[1734260149438,2.58712,3865.3,3865.2,0.8144]
[1734260149628,2.58712,3865.3,3865.2,0.89707]
[1734260149779,0.2252,3865.5,3864.9,1.08159046]
[1734260150114,0.2252,3865.5,3864.7,1.62238569]
[1734260150115,2.58729,3865.1,3865.0,0.89710974]
[1734260150491,2.58729,3865.1,3864.7,1.84279046]
[1734260150700,2.81225,3865.5,3864.8,2.24279063]
[1734260150872,0.2252,3865.5,3864.9,2.24279063]
[1734260151081,2.58734,3865.0,3864.7,1.84279046]
[1734260151427,2.58738,3864.9,3864.8,2.2428064]
[1734260151627,2.58738,3864.9,3864.8,0.89712256]
[1734260151834,2.58738,3864.9,3864.5,0.7612]
[1734260151993,2.58752,3864.7,3864.6,0.89715679]
[1734260152192,2.58752,3864.7,3864.3,1.08159046]
[1734260152193,1.04151623,3864.7,3864.3,1.08159046]
[1734260152396,1.04151623,3864.7,3864.1,1.08159046]
[1734260152397,2.58785,3864.2,3864.1,1.08159046]
[1734260152704,2.58797,3864.1,3863.9,0.7612]
[1734260152901,2.58797,3864.1,3864.0,0.89713322]
[1734260153321,2.58797,3864.1,3863.9,0.7612]
[1734260154122,2.58799,3864.0,3863.6,1.87669046]
[1734260154281,2.58807,3863.9,3863.6,0.7951]
[1734260155106,2.58814,3863.8,3863.6,0.7951]
[1734260155440,2.58814,3863.8,3863.3,1.08159046]
[1734260155441,3.62965623,3863.8,3863.3,0.7951]
[1734260155632,2.58821,3863.7,3863.4,0.89590793]
[1734260155795,1.04151623,3863.5,3863.4,0.89590793]
[1734260155997,1.04151623,3863.5,3863.3,0.7951]
[1734260157449,0.2252,3863.9,3863.3,0.7951]
[1734260157450,1.04151623,3863.7,3863.3,0.7951]
[1734260157748,1.04151623,3863.7,3863.4,0.10665919]
[1734260158306,3.62971623,3863.7,3863.4,0.10665919]
[1734260159254,1.04151623,3863.7,3863.4,0.10665919]
[1734260159562,2.58828,3863.6,3863.0,0.7951]
[1734260159839,3.62986623,3863.5,3863.1,0.10690579]
[1734260161232,1.04151623,3863.5,3863.1,0.10690579]
[1734260165023,3.62985623,3863.5,3863.1,0.10690579]
[1734260165950,1.04151623,3863.2,3863.1,0.10690579]
[1734260166224,2.58861,3863.1,3862.1,0.7951]
[1734260166434,1.04151623,3862.8,3862.1,0.7951]
[1734260166657,1.04151623,3862.8,3862.2,0.10808071]
[1734260172668,1.04151623,3862.4,3862.2,0.10808071]
[1734260173084,1.04151623,3862.4,3861.8,0.7635]
[1734260173592,1.04151623,3862.4,3861.9,0.10821946]
[1734260174165,1.04151623,3862.2,3861.9,0.10821946]
[1734260174807,1.04151623,3862.2,3861.8,0.7635]
[1734260175168,1.04151623,3862.2,3861.9,0.10821946]
[1734260176106,1.04151623,3862.0,3861.9,0.10821946]
[1734260176479,1.04151623,3862.0,3861.7,0.0577878]
[1734260176804,1.04151623,3861.8,3861.7,0.0577878]
[1734260177315,5.44769246,3861.8,3861.7,0.0577878]
[1734260179615,8.44769246,3861.8,3861.7,0.0577878]
[1734260181302,3.7752,3861.8,3861.7,0.0577878]
[1734260181539,1.81671623,3861.8,3861.7,0.0577878]
[1734260181696,5.66792324,3861.8,3861.7,0.0577878]
[1734260183842,8.66792324,3861.8,3861.7,0.0577878]
[1734260185304,8.70435404,3861.8,3861.7,0.0577878]
[1734260186255,6.11489404,3861.8,3861.7,0.0577878]
[1734260186555,5.89466326,3861.8,3861.7,0.0577878]
[1734260189062,2.66946326,3861.8,3861.7,0.0577878]
[1734260189260,0.55,3862.1,3861.7,0.8502878]
[1734260190076,0.55,3862.1,3861.8,0.11105407]
[1734260190382,0.26694633,3862.0,3861.7,0.8502878]
[1734260191367,2.11946326,3862.2,3861.7,0.8502878]
[1734260191546,2.11946326,3862.2,3861.8,0.11097377]
[1734260191743,2.11946326,3862.2,3861.7,0.8502878]
[1734260191944,2.11946326,3862.2,3861.8,0.11097377]
[1734260192794,2.11946326,3862.2,3861.7,0.8502878]
[1734260192795,0.2252,3862.4,3861.7,0.8502878]
[1734260193084,0.55,3862.5,3861.8,0.11105407]
[1734260193236,3.55,3862.5,3861.8,0.11105407]
[1734260193962,4.05645432,3862.5,3861.8,0.11105407]
[1734260194867,0.50645432,3862.5,3861.8,0.11105407]
[1734260195577,2.11946326,3862.6,3861.8,0.11105407]
[1734260196993,2.11946326,3862.6,3861.9,0.7897]
[1734260197187,2.11946326,3862.6,3862.0,0.11068261]
[1734260200296,0.55,3862.9,3862.0,0.11068261]
[1734260200531,1.19917226,3862.9,3862.0,0.11068261]
[1734260201437,0.55,3862.7,3862.0,0.11068261]
[1734260201825,0.55,3862.7,3861.9,0.7897]
[1734260202299,0.55,3862.7,3862.0,0.11006626]
[1734260203035,0.55,3862.5,3862.0,0.11006626]
[1734260204344,0.55,3862.7,3862.0,0.11006626]
[1734260204499,0.55,3862.5,3862.0,0.11006626]
[1734260206217,0.12976744,3862.6,3862.0,0.11006626]
[1734260206436,0.74767441,3862.8,3862.0,0.11006626]
[1734260206437,0.55,3862.7,3862.0,0.11006626]
[1734260207248,0.2252,3863.2,3862.1,0.7743]
[1734260207401,0.55,3863.1,3862.2,2.58918]
[1734260207601,1.07703118,3863.1,3862.3,0.88430456]
[1734260208457,1.07703118,3863.1,3862.4,2.589]
[1734260208998,1.07703118,3863.1,3862.6,0.7543]
[1734260209198,1.07703118,3863.1,3862.7,0.10979154]
[1734260209402,0.55,3863.4,3862.7,0.10979154]
[1734260210400,0.52532239,3863.2,3862.7,0.10979154]
[1734260210607,2.58876,3862.9,3862.7,0.10979154]
[1734260210825,0.55,3862.6,3861.9,0.7543]
[1734260211107,0.55,3862.6,3862.0,0.10604785]
[1734260211712,0.55,3862.6,3861.9,0.7543]
[1734260212238,0.55,3862.6,3862.0,0.10604785]
[1734260214840,1.0736136,3862.6,3862.0,0.10604785]
[1734260216828,1.08414457,3863.3,3862.0,0.10604785]
[1734260216829,0.2252,3863.2,3862.2,2.58919]
[1734260217034,0.2252,3863.2,3862.3,2.58907]
[1734260217207,0.2252,3863.2,3862.3,2.69491965]
[1734260217613,0.51103072,3863.1,3862.3,2.69491965]
[1734260222323,0.51103072,3863.1,3862.6,2.5889]
[1734260222717,0.51103072,3863.1,3862.7,0.10545034]
[1734260223212,0.2252,3863.5,3862.7,0.10545034]
[1734260223418,0.2252,3863.5,3862.8,0.8257]
[1734260223839,0.2252,3863.5,3862.9,0.1050078]
[1734260225148,0.73479041,3863.5,3862.9,0.1050078]
[1734260226339,1.06708945,3863.5,3862.9,0.1050078]
[1734260227259,2.58848,3863.3,3862.9,0.1050078]
[1734260227416,0.55,3863.2,3862.9,0.1050078]
[1734260227620,0.55,3863.2,3862.3,0.8257]
[1734260228016,0.55,3863.2,3862.4,0.10509329]
[1734260229322,3.13852,3863.2,3862.4,0.10509329]
[1734260229522,0.313852,3863.1,3862.4,0.10509329]
[1734260230366,3.13852,3863.2,3862.4,0.10509329]
[1734260231381,0.55,3863.4,3862.4,0.10509329]
[1734260231670,0.55,3863.4,3862.5,0.7926]
[1734260231874,0.55,3863.2,3862.5,0.7926]
[1734260232075,0.93732604,3863.2,3862.5,0.89778004]
[1734260232961,3.52591604,3863.2,3862.5,0.89778004]
[1734260233639,3.52280299,3863.2,3862.5,0.89778004]
[1734260235753,2.5886,3863.1,3862.5,0.89778004]
[1734260236059,0.2252,3863.0,3862.5,0.10518004]
[1734260236240,0.2252,3863.0,3862.2,0.8009]
[1734260236570,2.5886,3863.1,3862.3,2.34651652]
[1734260236881,2.5886,3863.1,3862.4,0.89650217]
[1734260237272,2.5886,3863.1,3862.5,0.10517495]
[1734260237640,2.5886,3863.1,3862.2,0.8009]
[1734260237977,2.58871,3863.0,3862.3,2.34681806]
[1734260238143,2.58871,3863.0,3862.3,0.10524581]
[1734260239467,0.77208695,3863.2,3862.3,0.10524581]
[1734260239668,2.58873,3862.9,3862.3,0.10524581]
[1734260241216,0.77208695,3863.2,3862.3,0.10524581]
[1734260241382,2.58862,3863.1,3862.4,0.8968752]
[1734260241582,2.58862,3863.1,3862.3,0.10524581]
[1734260241783,2.58862,3863.1,3862.5,0.10519023]
[1734260241951,2.58862,3863.1,3862.4,0.10522566]
[1734260242150,2.58862,3863.1,3862.2,0.8009]
[1734260242350,2.58862,3863.1,3862.5,0.10519023]
[1734260242578,2.58862,3863.1,3862.2,0.8009]
[1734260242774,2.58862,3863.1,3862.6,0.10436126]
[1734260243091,2.58862,3863.1,3862.7,0.10431056]
[1734260243608,2.58862,3863.1,3862.2,1.88249046]
[1734260243899,2.58862,3863.1,3862.3,2.2425499]
[1734260244184,2.58862,3863.1,3862.4,2.2425499]
[1734260244389,2.58862,3863.1,3862.3,0.10445227]
[1734260244683,2.58862,3863.1,3862.4,1.00145819]
[1734260244849,2.58862,3863.1,3862.4,0.10441684]
[1734260245054,2.58862,3863.1,3862.2,1.88249046]
[1734260245253,2.58866,3863.0,3862.3,2.34706609]
[1734260245487,2.58866,3863.0,3862.4,0.89704553]
[1734260245664,2.58866,3863.0,3862.3,0.10445227]
[1734260245865,2.58866,3863.0,3862.5,0.10432033]
[1734260246481,2.58866,3863.0,3862.2,1.88249046]
[1734260246652,2.58866,3863.0,3862.6,0.1042849]
[1734260246856,2.58866,3863.0,3862.2,1.88249046]
[1734260247057,2.58866,3863.0,3862.3,2.34721864]
[1734260247257,2.58866,3863.0,3862.4,0.89713098]
[1734260247598,0.77208695,3863.2,3862.6,0.7796]
[1734260247797,0.54688695,3863.2,3862.6,0.7796]
[1734260248101,0.54688695,3863.2,3862.7,0.10424947]
[1734260249100,4.40726498,3863.5,3862.7,0.10424947]
[1734260249401,1.59373498,3863.5,3862.8,0.7726]
[1734260249756,1.59373498,3863.5,3862.9,0.10416845]
[1734260250100,1.59373498,3863.5,3863.0,0.7726]
[1734260250411,0.50959041,3863.5,3863.0,0.7726]
[1734260250612,0.50959041,3863.5,3863.1,0.10409761]
[1734260250613,1.59373498,3863.5,3863.1,0.10409761]
[1734260250966,0.50959041,3863.5,3863.1,0.10409761]
[1734260251318,1.08414457,3863.8,3863.2,0.7726]
[1734260251483,0.55,3863.9,3863.2,0.87654001]
[1734260251808,0.55,3863.9,3863.3,2.24249492]
[1734260251957,0.55,3863.9,3863.4,0.89700997]
[1734260252157,0.55,3863.9,3863.4,0.10367068]
[1734260252594,0.55,3863.9,3863.2,0.7726]
[1734260252795,0.55,3863.9,3863.5,0.10362509]
[1734260252967,0.55,3863.9,3863.2,0.7726]
[1734260253311,0.55,3863.9,3863.3,0.89678867]
[1734260253509,0.55,3863.9,3863.3,0.10369592]
[1734260256266,1.04753366,3863.9,3863.3,0.10369592]
[1734260256470,0.55,3863.5,3863.3,0.10369592]
[1734260256700,0.55,3863.5,3862.8,0.8112]
[1734260256901,0.55,3863.7,3862.8,0.8112]
[1734260257106,0.55,3863.3,3862.9,0.10339476]
[1734260257325,0.55,3863.3,3862.5,0.8112]
[1734260257326,2.58859,3863.1,3862.5,0.8112]
[1734260257615,2.58859,3863.1,3863.0,0.10344077]
[1734260257819,2.58859,3863.1,3862.5,0.8112]
[1734260258166,2.58859,3863.1,3862.6,0.10358246]
[1734260258369,1.07665767,3863.3,3862.6,0.10358246]
[1734260258723,3.66511767,3863.3,3862.6,0.10358246]
[1734260261429,2.58854,3863.2,3862.6,0.10358246]
[1734260262804,1.07665767,3863.3,3862.6,0.10358246]
[1734260262805,2.58868,3863.0,3862.6,0.10358246]
[1734260264609,0.55,3863.1,3862.6,0.10358246]
[1734260267433,0.55,3863.0,3862.6,0.10358246]
[1734260269824,0.55,3863.2,3862.6,0.10358246]
[1734260270028,0.55,3863.2,3862.7,0.89715798]
[1734260270344,3.11512767,3863.3,3862.8,0.10400534]
[1734260270687,0.52665767,3863.3,3862.5,0.8112]
[1734260271041,0.52665767,3863.3,3862.9,0.10396992]
[1734260271221,0.52665767,3863.3,3862.5,1.89279046]
[1734260271470,0.52665767,3863.3,3862.6,2.34696399]
[1734260271637,0.52665767,3863.3,3862.7,0.89715512]
[1734260271833,0.52665767,3863.3,3862.8,0.10400534]
[1734260272065,0.52665767,3863.3,3862.5,1.89279046]
[1734260272266,0.52665767,3863.3,3862.6,2.24284541]
[1734260272466,0.52665767,3863.3,3862.7,0.89713816]
[1734260272669,0.52665767,3863.3,3862.6,0.10407619]
[1734260272873,0.52665767,3863.3,3862.7,0.89714038]
[1734260273072,0.52665767,3863.3,3862.8,0.10400534]
[1734260273238,0.52665767,3863.3,3862.5,1.89279046]
[1734260273439,0.52665767,3863.3,3862.6,2.34692289]
[1734260273677,0.52665767,3863.3,3862.7,0.89713868]
[1734260273850,0.52665767,3863.3,3862.8,0.10400534]
[1734260274260,0.52665767,3863.3,3862.5,1.89279046]
[1734260274446,0.52665767,3863.3,3862.6,2.34693265]
[1734260274777,0.52665767,3863.3,3862.7,0.89714258]
[1734260274971,0.52665767,3863.3,3862.6,0.10407619]
[1734260275187,0.52665767,3863.3,3862.8,0.10400534]
[1734260275384,0.52665767,3863.3,3862.7,0.10404076]
[1734260275570,0.52665767,3863.3,3862.9,0.10396992]
[1734260275774,0.52665767,3863.3,3862.8,0.10400534]
[1734260275985,0.52665767,3863.3,3863.0,0.1039345]
[1734260276155,0.52665767,3863.3,3862.9,0.10396992]
[1734260276354,0.52665767,3863.3,3863.1,0.10389908]
[1734260276682,3.11511767,3863.3,3862.5,1.89279046]
[1734260276891,3.11511767,3863.3,3862.6,2.24287771]
[1734260277202,3.11511767,3863.3,3862.7,0.89715108]
[1734260277401,3.11511767,3863.3,3862.6,0.10407619]
[1734260277605,3.11511767,3863.3,3862.8,0.10400534]
[1734260277890,3.11511767,3863.3,3862.9,0.10396992]
[1734260278258,3.11511767,3863.3,3862.5,1.89279046]
[1734260278467,3.11511767,3863.3,3862.6,2.34698837]
[1734260278665,3.11511767,3863.3,3862.7,0.89716487]
[1734260278861,3.11511767,3863.3,3862.8,0.10400534]
[1734260279063,3.11511767,3863.3,3862.5,1.89279046]
[1734260279295,3.11511767,3863.3,3862.6,2.34698684]
[1734260279476,3.11511767,3863.3,3862.7,0.89716426]
[1734260279682,3.11511767,3863.3,3862.8,0.10400534]
[1734260279882,3.11511767,3863.3,3862.5,1.89279046]
[1734260280052,3.11511767,3863.3,3862.6,2.34700609]
[1734260280259,3.11511767,3863.3,3862.7,0.89717196]
[1734260280458,3.11511767,3863.3,3862.8,0.10392897]
[1734260280659,3.11511767,3863.3,3862.5,1.89279046]
[1734260280907,3.11511767,3863.3,3862.6,2.34690375]
[1734260281113,3.11511767,3863.3,3862.7,0.89716157]
[1734260281409,3.11511767,3863.3,3862.7,0.10396439]
[1734260281758,3.11511767,3863.3,3862.5,1.89279046]
[1734260281957,3.11511767,3863.3,3862.8,0.10392897]
[1734260282211,3.11511767,3863.3,3862.5,1.89279046]
[1734260282374,3.11511767,3863.3,3862.9,0.10389355]
[1734260282560,3.11511767,3863.3,3862.5,1.89279046]
[1734260282760,0.2252,3863.2,3863.0,0.10385813]
[1734260282964,0.88403177,3863.1,3862.4,1.08159046]
[1734260283202,1.96817634,3863.1,3862.2,0.8074]
[1734260283384,2.58883,3862.8,3862.2,0.8074]
[1734260284316,2.58883,3862.8,3861.9,0.8074]
[1734260284317,0.2252,3862.7,3861.9,0.8074]
[1734260284521,2.58907,3862.4,3861.9,0.8074]
[1734260285363,2.58914,3862.3,3861.9,0.8074]
[1734260285565,0.55,3862.4,3861.7,0.6827878]
[1734260285812,2.5892,3862.2,3861.8,0.89711278]
[1734260285960,2.5892,3862.2,3861.7,0.6827878]
[1734260286161,0.55,3862.4,3861.8,0.89711309]
[1734260286389,0.55,3862.4,3861.7,0.6827878]
[1734260286721,0.55,3862.4,3861.8,2.24244026]
[1734260286918,0.55,3862.4,3861.9,0.89697601]
[1734260287104,0.55,3862.4,3861.7,0.6827878]
[1734260287297,0.55,3862.4,3861.8,2.24235277]
[1734260287516,0.55,3862.4,3861.9,0.89694111]
[1734260287721,0.55,3862.4,3861.7,0.6827878]
[1734260287897,0.55,3862.4,3861.8,2.24210865]
[1734260288115,0.55,3862.4,3861.9,0.89684346]
[1734260288286,0.55,3862.4,3861.7,0.6827878]
[1734260288483,0.55,3862.4,3861.8,2.24188423]
[1734260288720,0.55,3862.4,3861.7,0.6827878]
[1734260288944,0.55,3862.4,3861.8,2.24188437]
[1734260289144,0.55,3862.4,3861.7,0.6827878]
[1734260289433,0.55,3862.3,3861.7,0.6827878]
[1734260290542,0.2252,3862.2,3861.7,0.6827878]
[1734260292451,2.58934,3862.0,3861.7,0.6827878]
[1734260292658,2.58934,3862.0,3861.8,0.10519977]
[1734260293152,2.58934,3862.0,3861.7,0.6827878]
[1734260293502,0.2252,3862.2,3861.8,0.10519977]
[1734260293503,0.55,3862.1,3861.8,0.10519977]
[1734260293701,0.55,3862.1,3861.7,0.6827878]
[1734260293897,0.55,3862.1,3861.8,0.10519977]
[1734260294105,2.5892,3862.2,3861.8,0.7671]
[1734260294610,2.5892,3862.2,3861.9,0.10522544]
[1734260295161,2.5892,3862.2,3861.8,0.7671]
[1734260295658,2.5892,3862.2,3861.9,0.10522544]
[1734260295949,2.5892,3862.2,3861.8,0.7671]
[1734260300254,0.55,3862.5,3861.8,0.7671]
[1734260300557,2.58907,3862.4,3861.8,0.7671]
[1734260300757,0.52301757,3862.6,3861.8,0.7671]
[1734260300956,3.11195757,3862.6,3861.9,0.10536805]
[1734260301623,0.55,3862.7,3862.0,0.7671]
[1734260302035,0.55,3862.7,3862.1,0.10524115]
[1734260302557,1.05870147,3862.7,3862.1,0.10524115]
[1734260302867,0.55,3862.7,3862.1,0.10524115]
[1734260304560,0.55,3862.6,3862.1,0.10524115]
[1734260304879,2.589,3862.5,3862.1,0.10524115]
[1734260305044,2.58904,3862.5,3862.1,0.10524115]
[1734260305225,0.55,3862.8,3862.1,0.10524115]
[1734260305452,3.13899,3862.6,3862.0,0.7671]
[1734260305750,2.58901,3862.5,3862.1,0.10512402]
[1734260307145,0.55,3862.6,3862.1,0.10512402]
[1734260307347,2.58907,3862.4,3862.1,0.10512402]
[1734260307674,2.58907,3862.4,3862.0,0.7671]
[1734260307841,2.58907,3862.4,3862.2,0.10508859]
[1734260308182,2.58907,3862.4,3862.0,0.7671]
[1734260308381,0.2252,3862.3,3861.7,0.6827878]
[1734260308584,0.2252,3862.3,3862.1,0.10520041]
[1734260308585,2.58919,3862.2,3862.1,0.10520041]
[1734260308735,2.58937,3862.0,3861.7,0.6827878]
[1734260308937,0.55,3862.1,3861.7,0.6827878]
[1734260308938,2.5894,3861.9,3861.7,0.6827878]
[1734260309165,2.5894,3861.9,3861.8,0.10530672]
[1734260309481,2.5894,3861.9,3861.7,0.6827878]
[1734260311844,2.5894,3861.9,3861.8,0.10530672]
[1734260312231,2.5894,3861.9,3861.7,0.6827878]
[1734260313682,2.5894,3861.9,3861.8,0.10176553]
[1734260313981,2.5894,3861.9,3861.7,0.6827878]
[1734260314839,2.5894,3861.9,3861.8,0.1018572]
[1734260315281,2.5894,3861.9,3861.7,0.6827878]
[1734260321504,2.58946,3861.8,3861.7,0.6827878]
[1734260329323,3.32353729,3861.8,3861.7,0.6827878]
[1734260330822,2.58946,3861.8,3861.7,0.6827878]
[1734260332723,2.58946,3861.8,3861.7,0.0577878]
[1734260333328,3.36466,3861.8,3861.7,0.0577878]
[1734260333832,4.44880457,3861.8,3861.7,0.0577878]
[1734260336277,3.36466,3861.8,3861.7,0.0577878]
[1734260336482,4.39229343,3861.8,3861.7,0.0577878]
[1734260339329,5.47369661,3861.8,3861.7,0.0577878]
[1734260340401,4.39229343,3861.8,3861.7,0.0577878]
[1734260341131,7.39229343,3861.8,3861.7,7.8e-06]
[1734260341286,9.01851028,3861.8,3861.7,7.8e-06]
[1734260342133,7.39229343,3861.8,3861.7,7.8e-06]
[1734260342412,9.0138598,3861.8,3861.7,7.8e-06]
[1734260342832,7.39229343,3861.8,3861.7,7.8e-06]
[1734260343831,9.01368069,3861.8,3861.7,7.8e-06]
[1734260344705,7.39229343,3861.8,3861.7,7.8e-06]
[1734260344894,9.56058257,3861.8,3861.7,7.8e-06]
[1734260345430,7.39229343,3861.8,3861.7,7.8e-06]
[1734260345634,9.56058257,3861.8,3861.7,7.8e-06]
[1734260347347,7.39229343,3861.8,3861.7,7.8e-06]
[1734260349646,9.56058257,3861.8,3861.7,7.8e-06]
[1734260351177,9.6932677,3861.8,3861.7,7.8e-06]
[1734260353554,7.52497856,3861.8,3861.7,7.8e-06]
[1734260353752,10.22642063,3861.8,3861.7,7.8e-06]
[1734260356290,7.52497856,3861.8,3861.7,7.8e-06]
[1734260357493,7.39229343,3861.8,3861.7,7.8e-06]
[1734260359148,7.52237566,3861.8,3861.7,7.8e-06]
[1734260360302,2.59027,3860.6,3860.0,8.32251795]
[1734260360498,2.59053,3860.2,3860.1,0.7742]
[1734260360793,2.59053,3860.2,3860.1,0.87465355]
[1734260368683,2.59043,3860.4,3860.1,0.87465355]
[1734260369971,2.59003,3861.0,3860.1,0.87465355]
[1734260370322,3.14026,3860.7,3860.1,0.7742]
[1734260370617,2.5903,3860.6,3860.2,0.10025229]
[1734260370922,2.5903,3860.6,3860.3,0.7881]
[1734260371134,2.5903,3860.6,3860.3,0.88839836]
[1734260376088,2.59037,3860.5,3860.3,0.88839836]
[1734260376476,2.59037,3860.5,3860.3,0.7881]
[1734260377215,0.51270227,3860.7,3860.3,0.7881]
[1734260377418,2.5904,3860.4,3860.3,0.7881]
[1734260378300,2.58728324,3860.4,3860.3,0.7881]